Cogmind - Beta 14 @@@ ROGUE MODE // 2024.09.17 @ 23:12:54 Player: Dull Result: Destroyed by NB-IPF(z) with Makeshift Axe Performance ------------- Evolutions (3) 1500 Regions Visited (9) 1800 Robots Destroyed (150) 750 Value Destroyed (4900) 4900 Prototype IDs (29) 580 Alien Tech Used (0) 0 Bonus (837) 837 TOTAL SCORE: 10367 Bonus ------- High Alert Combat Kills 184 Follower Combat Kills 249 Aligned with FarCom 300 Met Imprinter 300 Friendly Fire -196 Cogmind --------- Core Integrity 0/700 Matter 167/300 Energy 100/100 System Corruption 0% Temperature Cool (0) Movement Core (1350) Ox26 Location -7/Zion Parts ------- > --- POWER (1) -------- (None) > --- PROPULSION (4) --- (None) > --- UTILITY (4) ------ Huge Storage Unit > --- WEAPON (4) ------- (None) > --- INVENTORY (25) --- Improved Deuterium Engine Reinforced Deuterium Engine High-capacity Matter Pod (200) Improved Terrain Scanner Improved Targeting Computer Matter Filter Weapon Cycler Improved Medium Armor Plating Makeshift Light Armor Plating Makeshift Light Armor Plating Makeshift Light Armor Plating Tractor Beam Field Recycling Unit (0) Heart of Steel Gatling Laser Gatling Laser Advanced Assault Cannon Slug Cannon Missile Launcher Spear Peak State ------------ > --- POWER ------------ Micro Nuclear Core > --- PROPULSION ------- Armored Huge Wheel Armored Huge Wheel > --- UTILITY ---------- Huge Storage Unit Armor Integrity Analyzer Heavy Armor Plating > --- WEAPON ----------- XL Autogun Array > --- INVENTORY -------- Deuterium Engine Reinforced Deuterium Engine Armored Huge Wheel Armored Huge Wheel Coolant Injector High-capacity Matter Pod Matter Filter Weapon Cycler Hardened Medium Armor Plating Hardened Medium Armor Plating Hardened Medium Armor Plating Hardened Medium Armor Plating Hacking Suite Tractor Beam Field Recycling Unit Flak Gun Flak Gun Flak Gun Flak Gun Advanced Assault Cannon Missile Launcher [Rating: 74] Favorites ----------- Power Ion Engine Engine Ion Engine Power Core Light Nuclear Core Propulsion Light Treads Treads Light Treads Leg Aluminum Leg Wheel Armored Huge Wheel Flight Unit Improved VTOL Module Utility Huge Storage Unit Device Coolant Injector Storage Huge Storage Unit Processor Armor Integrity Analyzer Hackware Hacking Suite Protection Makeshift Light Armor Plating Weapon Makeshift Shrapnel Gun Energy Gun Small Laser Ballistic Gun Makeshift Shrapnel Gun Ballistic Cannon Slug Cannon Launcher Rocket Launcher Piercing Weapon Spear Build | -11 -10 -10 -10 -9 -8 -7 -7 -7 -7 ------- Run | Yrd Mat Min Exi Min Mat Fac Low Low Zio Slots Evolved 6 | . . . . . 4 2 . . . Power . | . . . . . . . . . . Propulsion 2 | . . . . . 1 1 . . . Utility 2 | . . . . . 1 1 . . . Weapon 2 | . . . . . 2 . . . . Parts Attached 119 | 1 12 5 2 2 31 15 19 25 7 Power 12 | . 2 2 . . 3 3 1 1 . Engine 10 | . 2 1 . . 3 2 1 1 . Core 2 | . . 1 . . . 1 . . . Reactor . | . . . . . . . . . . Propulsion 17 | . 3 . . . 9 1 1 2 1 Treads 10 | . 3 . . . 7 . . . . Leg . | . . . . . . . . . . Wheel 6 | . . . . . 1 1 1 2 1 Hover . | . . . . . . . . . . Flight 1 | . . . . . 1 . . . . Utility 49 | 1 5 . . . 18 3 8 12 2 Device 13 | 1 1 . . . 4 . 3 3 1 Storage 3 | . 3 . . . . . . . . Processor 2 | . . . . . 2 . . . . Hackware 4 | . . . . . 2 2 . . . Protection 27 | . 1 . . . 10 1 5 9 1 Artifact . | . . . . . . . . . . Weapon 41 | . 2 3 2 2 1 8 9 10 4 Energy Gun 6 | . 1 2 1 2 . . . . . Energy Cannon . | . . . . . . . . . . Ballistic Gun 28 | . 1 1 1 . 1 8 8 7 1 Ballistic Cannon 3 | . . . . . . . . 1 2 Launcher 2 | . . . . . . . . 2 . Special Weapon . | . . . . . . . . . . Impact Weapon . | . . . . . . . . . . Slashing Weapon . | . . . . . . . . . . Piercing Weapon 2 | . . . . . . . 1 . 1 Special Melee Weapon . | . . . . . . . . . . Unidentified Prototypes 4 | . . . . . 1 2 . 1 . Parts Lost 23 | . . 1 . . . . 6 5 11 Power 3 | . . 1 . . . . . 1 1 Propulsion 5 | . . . . . . . . 2 3 Utility 3 | . . . . . . . 1 . 2 Weapon 12 | . . . . . . . 5 2 5 Highest Loss Streak 11 | . . 1 . . . . 4 5 11 To Critical Strikes . | . . . . . . . . . . Average Slot Usage (%) 83 | . 99 99 71 100 71 64 83 82 83 Engine 9 | . 14 10 14 14 9 6 7 6 6 Treads 16 | . 26 28 28 28 25 . . . . Wheel 6 | . . . . . . 15 15 14 14 Device 1 | . 7 . . . . . 4 . . Storage 10 | . 14 14 14 14 9 7 7 7 7 Processor 2 | . . . . . 6 7 2 . . Hackware 1 | . . . . . 4 7 . . . Protection 12 | . 6 14 14 14 7 3 14 21 22 Energy Gun 4 | . 14 14 . 14 . . . . . Ballistic Gun 16 | . 13 14 . 14 8 14 29 29 23 Peak Build Rating 74 | 7 10 12 16 17 68 74 64 68 61 Average Rating 41 | 6 9 9 9 16 60 69 60 57 57 On Entrance 31 | 6 7 9 12 16 16 65 63 60 58 Naked Turns . | . . . . . . . . . . Heaviest Build 121 | 13 90 91 91 91 118 120 121 114 113 Greatest Support 66 | 20 40 40 40 40 66 56 56 56 56 Greatest Overweight (x) 33 | . 2 2 2 2 4 2 2 4 33 Average Overweight (x) 1 | . 1 2 2 2 1 1 1 1 2 Largest Inventory Capacity 25 | 8 25 25 25 25 25 25 25 25 25 Average Capacity 24 | 8 21 25 25 25 25 25 25 25 25 Most Carried 25 | 7 18 20 25 23 25 25 25 25 25 Average Carried 22 | 6 12 17 23 23 24 24 23 23 24 Final Capacity 25 | 8 25 25 25 25 25 25 25 25 25 Final Carried 25 | 7 17 19 23 23 25 25 25 25 22 Class Distribution -------------------- 38% | Mutant 25% | Skirmisher 23% | Derelict-Tank 5% | Hacker-Skirmisher 4% | Gunner Dominant Class ---------------- Mutant | -10/Materials Mutant | -10/Mines Mutant | -10/Exiles Mutant | -9/Mines Skirmisher | -8/Materials Hacker-Skirmisher | -7/Factory Derelict-Tank | -7/Lower Caves Derelict-Tank | -7/Lower Caves Derelict-Tank | -7/Zion Resources | -11 -10 -10 -10 -9 -8 -7 -7 -7 -7 ----------- Run | Yrd Mat Min Exi Min Mat Fac Low Low Zio Matter Collected 5738 | 228 424 222 106 98 1435 1528 700 824 173 Remotely . | . . . . . . . . . . Salvage Created 6070 | 100 532 150 . . 2083 2168 698 247 92 Parts 339 | 5 34 7 . . 112 120 38 12 11 Haulers Intercepted 12 | . 2 . . . 6 4 . . . Recyclers Shooed 6 | 1 3 . . . 2 . . . . Parts Field Recycled 19 | . . . . . . . 7 12 . Retrieved Matter 180 | . . . . . . . 126 54 . Parts Self-Destructed 57 | . . . . . . . 37 20 . Prevented 2 | . . . . . . . 2 . . Kills | -11 -10 -10 -10 -9 -8 -7 -7 -7 -7 ------- Run | Yrd Mat Min Exi Min Mat Fac Low Low Zio Combat Hostiles Destroyed 107 | . 10 4 . . 33 34 18 7 1 Guns 107 | . 10 4 . . 33 34 18 7 1 Classes Destroyed 18 | 2 5 . . . 5 4 . . 2 Worker 3 | . . . . . 1 2 . . . Builder 1 | . . . . . 1 . . . . Tunneler 2 | 1 . . . . 1 . . . . Hauler 12 | . 2 . . . 6 4 . . . Recycler 8 | 1 1 . . . 3 3 . . . Operator 3 | . 1 . . . 1 1 . . . Watcher 6 | . 1 . . . 4 1 . . . Swarmer 27 | . 3 . . . 11 3 6 4 . Grunt 49 | . 7 4 . . 13 14 11 . . Brawler 1 | . . . . . . 1 . . . Duelist 1 | . . . . . . 1 . . . Sentry 10 | . . . . . 6 1 1 2 . Specialist 4 | . . . . . 2 2 . . . Hunter 3 | . . . . . . 3 . . . Programmer 8 | . . . . . . 7 . 1 . Heavy 3 | . . . . . 1 2 . . . Zionite 7 | . . . . . . . . . 7 Decomposer 1 | . . . . . . . 1 . . Savage 1 | . . . . . . . . 1 . Mutant 1 | . . . . . . . . . 1 Best Kill Streak 13 | 2 3 2 . . 7 6 13 4 7 Combat Bots Only 13 | . 2 2 . . 6 5 13 4 1 Max Kills in Single Turn 2 | 1 1 1 . . 2 2 2 2 1 Gunslinging 1 | . . . . . . . 1 . . Exploded . | . . . . . . . . . . Melee . | . . . . . . . . . . Uniques/NPCs Destroyed 1 | . . . . . . . . . 1 Imprinter (-7/Zion) Combat | -11 -10 -10 -10 -9 -8 -7 -7 -7 -7 -------- Run | Yrd Mat Min Exi Min Mat Fac Low Low Zio Hostile Shots Fired 491 | . 58 35 . 1 57 72 101 40 127 Missed 121 | . 23 6 . . 17 18 15 12 30 Damage Taken 6499 | . 521 404 . 6 600 1095 1413 446 2014 Core 1014 | . 117 85 . . 71 73 128 5 535 Absorbed by Shields . | . . . . . . . . . . Redirected to Shielding 32 | . 16 16 . . . . . . . Ignored by Resistances 2 | . . . . . 2 . . . . Regen/Repaired (Parts) 199 | . 165 . . . 34 . . . . Core Remaining (%) 68 | 100 . . . 19 87 . . . . Volleys Fired 326 | 6 59 19 . . 78 101 34 12 17 Largest 4 | 2 2 2 . . 1 4 4 4 4 Hottest 104 | 70 70 60 . . 60 80 96 104 104 Shots Fired 783 | 12 119 39 . 4 78 290 133 48 60 Gun 778 | 12 119 39 . 4 78 290 133 48 55 Cannon 5 | . . . . . . . . . 5 Launcher . | . . . . . . . . . . Special . | . . . . . . . . . . Kinetic 696 | 6 60 20 . 1 78 290 133 48 60 Thermal 87 | 6 59 19 . 3 . . . . . Explosive . | . . . . . . . . . . Electromagnetic . | . . . . . . . . . . Robot Hit Streak 17 | 3 10 13 . 1 9 16 17 10 4 Robot Miss Streak 11 | 4 4 4 . 2 9 7 11 9 9 Penetration Max . | . . . . . . . . . . Secondary Targets 19 | . . 1 . . . 1 9 1 7 Max Gunslinging Chain 2 | . . 1 . . . 1 2 1 1 Shots Hit Robots 527 | 5 71 27 . 1 77 181 85 35 45 Core Hits 306 | 3 30 10 . . 64 96 54 29 20 Critical Kills . | . . . . . . . . . . Critical Parts Destroyed 1 | . . . . . . . . . 1 Critical Strikes 2 | 1 . . . . . . . . 1 Burn 1 | 1 . . . . . . . . . Destroy 1 | . . . . . . . . . 1 Melee Attacks 2 | . . . . . . . 1 . 1 Impact . | . . . . . . . . . . Slashing . | . . . . . . . . . . Piercing 2 | . . . . . . . 1 . 1 Sneak Attacks . | . . . . . . . . . . Combat Hostiles . | . . . . . . . . . . Follow-up Attacks . | . . . . . . . . . . Damage Inflicted 13752 | 65 923 316 . 10 3995 5259 1798 757 629 Guns 13698 | 65 923 316 . 10 3995 5259 1798 757 575 Cannons 54 | . . . . . . . . . 54 Explosions . | . . . . . . . . . . Melee . | . . . . . . . . . . Ramming . | . . . . . . . . . . Kinetic 13119 | 27 465 189 . . 3995 5259 1798 757 629 Thermal 633 | 38 458 127 . 10 . . . . . Explosive . | . . . . . . . . . . Electromagnetic . | . . . . . . . . . . Impact . | . . . . . . . . . . Slashing . | . . . . . . . . . . Piercing . | . . . . . . . . . . Highest Corruption 5 | . 5 5 5 5 . 4 5 . . Average Corruption 4 | . 4 5 5 5 . 2 4 . . Corruption Purged 5 | . . . . . . . 5 . . Corruption Blocked . | . . . . . . . . . . Effects 214 | . 15 63 26 46 . 35 29 . . Message Errors 61 | . 7 15 4 19 . 6 10 . . Matter Fused 44 | . 3 16 6 8 . 6 5 . . Heat Flow Errors 20 | . . 8 5 4 . 1 2 . . Energy Discharges 24 | . 2 5 4 4 . 7 2 . . Parts Fused 1 | . . . . . . . 1 . . Data Loss (minor) 24 | . . 9 2 5 . 7 1 . . Data Loss (major) 21 | . 1 8 4 1 . 4 3 . . Misfires 11 | . 2 1 . 4 . 2 2 . . Alerts 6 | . . 1 1 1 . . 3 . . Weapon Failures 2 | . . . . . . 2 . . . Overload Shots . | . . . . . . . . . . Overflow Damage . | . . . . . . . . . . Projectiles . | . . . . . . . . . . Explosions . | . . . . . . . . . . Melee . | . . . . . . . . . . Knockbacks 1 | . . . . . . . . . 1 Impact . | . . . . . . . . . . Kinetic 1 | . . . . . . . . . 1 Secondary . | . . . . . . . . . . Self-Inflicted Damage . | . . . . . . . . . . Shots . | . . . . . . . . . . Rammed . | . . . . . . . . . . Targets Rammed . | . . . . . . . . . . Kicked . | . . . . . . . . . . Crushed . | . . . . . . . . . . Highest Temperature 640 | 54 126 272 217 276 401 408 640 197 588 Average Temperature 115 | 28 40 69 86 121 93 119 148 102 223 Received Heat Transfer 1925 | . 225 267 . . 189 180 594 69 401 Effects 29 | . . 2 . . 1 5 5 . 16 Shutdowns 2 | . . . . . . . 1 . 1 Energy Bleed 2 | . . . . . . . 2 . . Interference 13 | . . 2 . . 1 5 . . 5 Matter Decay 2 | . . . . . . . 2 . . Short Circuit 2 | . . . . . . . . . 2 Damage (minor) 1 | . . . . . . . . . 1 Damage (major) 7 | . . . . . . . . . 7 Siege Activations . | . . . . . . . . . . Robots Corrupted . | . . . . . . . . . . Combat Hostiles . | . . . . . . . . . . Parts Fried . | . . . . . . . . . . Impact Corruptions . | . . . . . . . . . . Robots Melted . | . . . . . . . . . . Combat Hostiles . | . . . . . . . . . . Parts Melted 2 | . 2 . . . . . . . . Heat Transferred 1747 | 185 1237 300 . 25 . . . . . Parts Sabotaged . | . . . . . . . . . . Parts Stolen . | . . . . . . . . . . Parts Stripped . | . . . . . . . . . . Power Chain Reactions . | . . . . . . . . . . Alert | -11 -10 -10 -10 -9 -8 -7 -7 -7 -7 ------- Run | Yrd Mat Min Exi Min Mat Fac Low Low Zio Peak Influence 646 | 10 173 69 . 78 563 646 . . . Initial 249 | . 6 19 . . . 249 . . . Average 150 | 5 44 14 . 4 294 265 . . . Maximum Alert Level 2 | . . . . . 2 2 . . . Low Security (%) 67 | 100 100 100 . 100 36 28 . . . Level 1 18 | . . . . . 27 57 . . . Level 2 14 | . . . . . 36 14 . . . Level 3 . | . . . . . . . . . . Level 4 . | . . . . . . . . . . Level 5 . | . . . . . . . . . . High Security . | . . . . . . . . . . Max Security . | . . . . . . . . . . Squads Dispatched 19 | . 2 . . . 6 11 . . . Investigation 3 | . . . . . 2 1 . . . Extermination 5 | . . . . . . 5 . . . Reinforcement 10 | . 2 . . . 4 4 . . . Assault 1 | . . . . . . 1 . . . Garrison . | . . . . . . . . . . Intercept . | . . . . . . . . . . Searches Triggered . | . . . . . . . . . . Construction Impeded 1 | . . . . . . 1 . . . Haulers Reinforced . | . . . . . . . . . . Active Scanning Responses . | . . . . . . . . . . Cargo Convoy Interrupts 1 | . . . . . . 1 . . . Stealth | -11 -10 -10 -10 -9 -8 -7 -7 -7 -7 --------- Run | Yrd Mat Min Exi Min Mat Fac Low Low Zio Distress Signals 8 | . 1 . . . 5 2 . . . Communications Jammed . | . . . . . . . . . . Distress Signals . | . . . . . . . . . . Times Spotted 191 | . 22 6 . 1 48 54 19 7 34 Peak Tracking Total 16 | . 3 2 . 3 7 5 13 4 16 Tactical Retreats 9 | . 1 2 . . 2 2 2 . . Traps | -11 -10 -10 -10 -9 -8 -7 -7 -7 -7 ------- Run | Yrd Mat Min Exi Min Mat Fac Low Low Zio Traps Triggered 7 | . 5 . . . . 2 . . . Indirectly . | . . . . . . . . . . Trap Hack Attempts . | . . . . . . . . . . Triggered . | . . . . . . . . . . Disarmed . | . . . . . . . . . . Reprogrammed . | . . . . . . . . . . Reused . | . . . . . . . . . . Traps Extracted . | . . . . . . . . . . Installed . | . . . . . . . . . . Triggered 3 | . . . . . . 2 1 . . Machines | -11 -10 -10 -10 -9 -8 -7 -7 -7 -7 ---------- Run | Yrd Mat Min Exi Min Mat Fac Low Low Zio Machines Disabled 14 | . 1 1 . 1 5 2 1 . 3 Max in Single Turn 1 | . 1 . . 1 1 1 1 . . Garrison Access 2 | . . . . . 1 1 . . . Machines Repaired . | . . . . . . . . . . Machines Dismantled . | . . . . . . . . . . Machines Sabotaged . | . . . . . . . . . . Overloaded Fab Kills . | . . . . . . . . . . Hacking | -11 -10 -10 -10 -9 -8 -7 -7 -7 -7 --------- Run | Yrd Mat Min Exi Min Mat Fac Low Low Zio Machines Accessed 40 | . 9 . 2 . 14 8 2 4 1 Terminals 22 | . 6 . . . 9 6 1 . . Fabricators . | . . . . . . . . . . Repair Stations 2 | . 1 . . . 1 . . . . Recycling Units 5 | . 2 . . . 2 1 . . . Scanalyzers 1 | . . . . . 1 . . . . Garrison Access 2 | . . . . . 1 1 . . . Total Hacks 119 | . 28 . 2 . 43 22 8 10 6 Successful 75 | . 16 . 2 . 24 9 8 10 6 Failed 44 | . 12 . . . 19 13 . . . Catastrophic 7 | . . . . . 3 4 . . . Database Lockouts . | . . . . . . . . . . Manual 77 | . 25 . 1 . 29 21 . . 1 Terminals 76 | . 19 . . . 32 18 7 . . Fabricators . | . . . . . . . . . . Repair Stations 7 | . 4 . . . 3 . . . . Recycling Units 12 | . 5 . . . 4 3 . . . Scanalyzers 2 | . . . . . 2 . . . . Garrison Access 3 | . . . . . 2 1 . . . Terminal Hacks 43 | . 4 . 2 . 11 2 8 10 6 Record 15 | . . . 1 . . . 7 7 . Part Schematic 7 | . 1 . . . . . . . 6 Robot Analysis 7 | . 3 . . . 4 . . . . Prototype ID Bank 1 | . . . . . 1 . . . . Open Door 4 | . . . . . . . 1 3 . Branch Access Points 1 | . . . . . . 1 . . . Alert Level 4 | . . . . . 4 . . . . Unreport Threat 3 | . . . . . 2 1 . . . Derelict Proto ID Bank 1 | . . . 1 . . . . . . Fabricator Hacks . | . . . . . . . . . . Repair Station Hacks 6 | . 4 . . . 2 . . . . Scan Component 3 | . 2 . . . 1 . . . . Repair 3 | . 2 . . . 1 . . . . Recycling Unit Hacks . | . . . . . . . . . . Scanalyzer 2 | . . . . . 2 . . . . Insert Component 1 | . . . . . 1 . . . . Analyze 1 | . . . . . 1 . . . . Garrison Access Hacks 2 | . . . . . 1 1 . . . Seal Access 2 | . . . . . 1 1 . . . Unauthorized Hacks 22 | . 8 . . . 8 6 . . . Terminals 13 | . 4 . . . 4 5 . . . Assimilate 1 | . . . . . . 1 . . . Botnet 12 | . 4 . . . 4 4 . . . Fabricators . | . . . . . . . . . . Repair Stations . | . . . . . . . . . . Recycling Units 9 | . 4 . . . 4 1 . . . Reject 4 | . 2 . . . 2 . . . . Mask 5 | . 2 . . . 2 1 . . . Scanalyzers . | . . . . . . . . . . Garrison Access . | . . . . . . . . . . Data Cores Recovered . | . . . . . . . . . . Used . | . . . . . . . . . . Hacking Detections 27 | . 8 . . . 11 7 1 . . Full Trace Events 5 | . 1 . . . 2 1 1 . . Feedback Events 1 | . . . . . . . 1 . . Corruption 1 | . . . . . . . 1 . . Feedback Blocked . | . . . . . . . . . . Robot Schematics Acquired 3 | . . . . . . . . . 3 Robots Built . | . . . . . . . . . . Authchips . | . . . . . . . . . . Time . | . . . . . . . . . . Total Robot Build Rating . | . . . . . . . . . . Part Schematics Acquired 22 | . 1 . . . 1 . . . 20 Parts Built . | . . . . . . . . . . Authchips . | . . . . . . . . . . Time . | . . . . . . . . . . Total Part Build Rating . | . . . . . . . . . . Parts Repaired 3 | . 2 . . . 1 . . . . Time 90 | . 52 . . . 38 . . . . Parts Recycled . | . . . . . . . . . . Recycled Matter . | . . . . . . . . . . Retrieved Matter . | . . . . . . . . . . Retrieved Components . | . . . . . . . . . . Parts Scanalyzed 1 | . . . . . 1 . . . . Part Schematics Acquired 1 | . . . . . 1 . . . . Parts Damaged . | . . . . . . . . . . Bothacking | -11 -10 -10 -10 -9 -8 -7 -7 -7 -7 ------------ Run | Yrd Mat Min Exi Min Mat Fac Low Low Zio Used RIF Installer . | . . . . . . . . . . Robots Hacked . | . . . . . . . . . . Non-combat . | . . . . . . . . . . Combat . | . . . . . . . . . . Robot Hacks Applied . | . . . . . . . . . . Relay Couplers Released . | . . . . . . . . . . Fabnet Peak Effective % . | . . . . . . . . . . Robots Rewired . | . . . . . . . . . . Allies Hacked . | . . . . . . . . . . Hacks Repelled . | . . . . . . . . . . Allies | -11 -10 -10 -10 -9 -8 -7 -7 -7 -7 -------- Run | Yrd Mat Min Exi Min Mat Fac Low Low Zio Total Allies 5 | . . 3 . . . . . . 2 Largest Group 3 | . . 3 3 3 2 . . . 2 Highest-Rated Group 192 | . . 40 40 40 32 . . . 192 Highest-Rated Ally 96 | . . 16 16 16 16 . . . 96 Total Orders . | . . . . . . . . . . Ally Attacks 94 | . . 3 . 6 19 . . . 66 Total Damage 2869 | . . 17 . 65 110 . . . 2677 Kills 22 | . . 1 . 3 4 . . . 14 Allies Corrupted . | . . . . . . . . . . Allies Melted . | . . . . . . . . . . Intel | -11 -10 -10 -10 -9 -8 -7 -7 -7 -7 ------- Run | Yrd Mat Min Exi Min Mat Fac Low Low Zio Robot Analysis Total 7 | . 3 . . . 4 . . . . Derelict Logs Recovered 9 | . . 1 . 2 . . 2 3 1 Drone Launches . | . . . . . . . . . . Drone Recoveries . | . . . . . . . . . . Exploration | -11 -10 -10 -10 -9 -8 -7 -7 -7 -7 ------------- Run | Yrd Mat Min Exi Min Mat Fac Low Low Zio Turns Passed 19402 | 38 2142 2168 1001 2139 4109 2143 1994 2045 1623 Spaces Moved 9366 | 15 721 644 309 655 1598 1368 1444 1448 1164 Core 1 | . . . . . . . . . 1 Treads 3707 | . 661 644 309 655 1438 . . . . Legs 75 | 15 60 . . . . . . . . Wheels 5583 | . . . . . 160 1368 1444 1448 1163 Hover . | . . . . . . . . . . Flight . | . . . . . . . . . . Fastest Speed 115 | 120 120 320 320 320 160 115 115 115 130 Average Speed 185 | 120 252 320 320 320 220 121 128 125 131 Slowest Speed 1700 | 120 320 320 320 320 240 130 130 160 1700 Overloaded Moves . | . . . . . . . . . . Propulsion Burnouts . | . . . . . . . . . . Robots Hopped . | . . . . . . . . . . Cave-ins Triggered . | . . . . . . . . . . Exploration Rate (%) 78 | 2 99 99 70 99 97 31 98 99 88 Regions Visited 9 Branch Regions 6 Pre-discovered Areas 3 | . . 1 1 1 . . . . . Known Exits Taken 3 | . . . . . 1 1 . 1 . Unknown Exits Taken 6 | 1 1 1 1 1 . . 1 . . Scrap Searched 11 | . . 1 . 2 . . 2 4 2 Spaces Dug 1 | . . . . . . . 1 . . Terrain Destroyed 84 | . . . . . 80 3 1 . . Melee 1 | . . . . . . . 1 . . Projectile 83 | . . . . . 80 3 . . . AOE . | . . . . . . . . . . Terrain Rammed . | . . . . . . . . . . Walls Destroyed . | . . . . . . . . . . Machines Disabled . | . . . . . . . . . . Actions | -11 -10 -10 -10 -9 -8 -7 -7 -7 -7 --------- Run | Yrd Mat Min Exi Min Mat Fac Low Low Zio Total 11107 | 22 927 715 327 699 2215 1789 1546 1649 1218 Wait 1082 | . 110 41 10 42 407 291 26 128 27 Move 9357 | 14 720 643 308 654 1597 1367 1443 1447 1164 Hop . | . . . . . . . . . . Pick Up 98 | 1 15 3 3 . 45 8 16 7 . Fast Attach 24 | 1 2 . . 1 5 3 . 11 1 Attach 32 | . . 1 2 . 3 5 10 8 3 Detach 7 | . . . 2 . 2 . . 3 . Swap 63 | . 10 4 . 1 23 7 9 6 3 Drop 103 | . 11 4 2 1 55 7 7 14 2 Fire 326 | 6 59 19 . . 78 101 34 12 17 Melee 2 | . . . . . . . 1 . 1 Ram . | . . . . . . . . . . Kick . | . . . . . . . . . . Crush . | . . . . . . . . . . Escape Stasis . | . . . . . . . . . . Rewire 13 | . . . . . . . . 13 . Trap . | . . . . . . . . . . Miscellaneous . | . . . . . . . . . . Route ------- -11/Scrapyard -10/Materials (discovered 5 exits: [*Mat x3] / [*Min x2]) -10/Mines (discovered 4 exits: [*Mat x2] / *Exi / Sub) -10/Exiles (discovered 2 exits: [*Min x2]) -9/Mines (discovered 2 exits: *Mat x2) -8/Materials (discovered 3 exits: *Fac x3) -7/Factory (discovered 4 exits: [*Fac] / Sto / *Low x2) -7/Lower Caves -7/Lower Caves (discovered 2 exits: [*Fac] / *Zio) -7/Zion (discovered 2 exits: Dee / *Pro) History --------- Turn | Location | Event 1 | -11/Scrapyard | Discovered new exit (range 3) 39 | -11/Scrapyard | Entered Materials 175 | -10/Materials | Discovered new exit (range 11) 302 | -10/Materials | Build established: Mutant 364 | -10/Materials | Discovered new exit (range 13) 1204 | -10/Materials | Discovered new exit (range 15) 1591 | -10/Materials | Discovered new exit (range 16) 1856 | -10/Materials | Discovered new exit (range 13) 1911 | -10/Materials | Repaired Lgt. Treads 1939 | -10/Materials | Repaired Assault Rifle 2181 | -10/Materials | Entered Mines 2354 | -10/Mines | Core integrity fell below 50% 2696 | -10/Mines | Discovered new exit (range 16) 2809 | -10/Mines | Core integrity fell below 20% 2898 | -10/Mines | Received a Rocket Launcher from a helpful Derelict 3122 | -10/Mines | Deemed a non-threat by the Exiles lab entrance 3122 | -10/Mines | Discovered new exit (range 5) 3219 | -10/Mines | Assembled infested the area 3389 | -10/Mines | Assisted by bots powering up and referring to "LRC-V3" 3633 | -10/Mines | Discovered new exit (range 6) 3956 | -10/Mines | Identified exit to Subcaves 3981 | -10/Mines | A weapon hastily lodged in a ceiling crevice suddenly fell to the ground 4144 | -10/Mines | Learned location of Storage (-7) 4349 | -10/Mines | Entered Exiles 4349 | -10/Exiles | Accompanied by 3 allies 4403 | -10/Exiles | Discovered new exit (range 15) 4499 | -10/Exiles | Met 8R-AWN 4550 | -10/Exiles | Met EX-HEX 4653 | -10/Exiles | Met EX-BIN 4691 | -10/Exiles | Aligned with FarCom system 4694 | -10/Exiles | Given EX-Vault access code 4768 | -10/Exiles | Opened EX-Vault 4792 | -10/Exiles | Found XL Autogun Array 4857 | -10/Exiles | Warned to stay clear of 0b10 Research branches 5065 | -10/Exiles | Met EX-DEC 5116 | -10/Exiles | Learned location of Zion (-7) 5308 | -10/Exiles | Discovered new exit (range 14) 5350 | -10/Exiles | Left Exiles lab with XL Autogun Array 5350 | -10/Exiles | Entered Mines 5350 | -9/Mines | Accompanied by 3 allies 5410 | -9/Mines | Met a Derelict bent on vengeance 6136 | -9/Mines | Discovered new exit (range 7) 6417 | -9/Mines | Discovered new exit (range 10) 7000 | -9/Mines | Learned location of 1 exit from Materials 7489 | -9/Mines | Entered Materials 7489 | -8/Materials | Accompanied by 2 allies 7489 | -8/Materials | Evolved 4 slots: Propulsion x1, Utility x1, Weapon x2 7490 | -8/Materials | Identified exit to Factory 8199 | -8/Materials | Discovered exit to Factory (range 13) 8228 | -8/Materials | Build established: Skirmisher 8833 | -8/Materials | Discovered exit to Factory (range 13) 9126 | -8/Materials | Repaired Adv. Treads 11598 | -8/Materials | Entered Factory 11598 | -7/Factory | Evolved 2 slots: Propulsion x1, Utility x1 12581 | -7/Factory | Discovered new exit (range 12) 12933 | -7/Factory | Discovered new exit (range 6) 12943 | -7/Factory | Build established: Hacker-Skirmisher 13000 | -7/Factory | Identified exit to Storage 13000 | -7/Factory | Identified exit to Lower Caves 13096 | -7/Factory | Cargo convoy interrupted 13598 | -7/Factory | First assault squad dispatched 13741 | -7/Factory | Entered Lower Caves 14036 | -7/Lower Caves | Build established: Gunner 14047 | -7/Lower Caves | Learned 4 Factory zone layouts 14272 | -7/Lower Caves | Discovered new exit (range 13) 14614 | -7/Lower Caves | Learned 6 Upper Caves zone layouts 14614 | -7/Lower Caves | Learned Factory trap positions 14614 | -7/Lower Caves | Learned Extension emergency access door positions 14614 | -7/Lower Caves | Learned Armory emergency access door positions 14614 | -7/Lower Caves | Learned Factory terminal intel 14615 | -7/Lower Caves | Attracted the attention of an 0b10 base 14680 | -7/Lower Caves | Lost 4 parts (4w) 14697 | -7/Lower Caves | Destroyed 13 combat bots 14907 | -7/Lower Caves | Build established: Derelict-Tank 15163 | -7/Lower Caves | Learned Factory emergency access door positions 15735 | -7/Lower Caves | Entered another Lower Caves area 15848 | -7/Lower Caves | Discovered new exit (range 8) 16131 | -7/Lower Caves | Encountered a Warlord checkpoint 16145 | -7/Lower Caves | Identified exit to Zion 16245 | -7/Lower Caves | Lost 5 parts (1p2n2w) 16246 | -7/Lower Caves | Learned location of 1 exit from Research 16246 | -7/Lower Caves | Learned Extension trap positions 16246 | -7/Lower Caves | Learned Extension stockpile data 16246 | -7/Lower Caves | Learned Armory terminal intel 16246 | -7/Lower Caves | Learned Factory garrison access intel 16345 | -7/Lower Caves | Found Prototype Device 16392 | -7/Lower Caves | Learned Factory machine intel 16677 | -7/Lower Caves | Identified Heart of Steel 17324 | -7/Lower Caves | Learned Factory emergency access door positions 17349 | -7/Lower Caves | Attracted the attention of an 0b10 checkpoint 17780 | -7/Lower Caves | Entered Zion 17781 | -7/Zion | Identified exit to Proximity Caves 17979 | -7/Zion | Given A8's code to call for help 18416 | -7/Zion | Identified exit to Deep Caves 18589 | -7/Zion | Visited the Megawrench Repair Shop 18658 | -7/Zion | Rebuked by Imprinter 19073 | -7/Zion | Enhanced Grunt warped into view, answering call for help 19075 | -7/Zion | Enhanced Grunt warped into view, answering call for help 19209 | -7/Zion | Attempted to imprint without authorization 19209 | -7/Zion | Attacked by Zionites 19209 | -7/Zion | Allies destroyed Imprinter 19370 | -7/Zion | Core integrity fell below 50% 19402 | -7/Zion | Core integrity fell below 20% 19403 | -7/Zion | Destroyed by NB-IPF(z) with Makeshift Axe Last Messages --------------- 19399_ Broken Arm. Huge Wheel destroyed. 19399_ G3-INK(m) repairs Mak. Spear. 19399_ A2-XXT(z) overheating. 19399_ 2X-MSW(z) overheating. 19399_ 92-BP2(z) overheating. 19400_ 92-BP2(z) heat damages Mak. Axe. 19400_ 2X-MSW(z) overheating. 19400_ 19-SKI(z) overheating. 19401_ 92-BP2(z) heat damages Mak. Shrapnel Gun. 19401_ G3-INK(m) repairs Mak. Shrapnel Gun. 19401_ 2X-MSW(z) overheating. 19401_ Critical hit (Burn: +37). 19401_ 92-BP2(z) overheating. 19402_ 2X-MSW(z) heat damages core (-2). 19402_ 2X-MSW(z) overheating. 19402_ 92-BP2(z) overheating. 19403_ 2X-MSW(z) heat damages core (-2). 19403_ 92-BP2(z) heat damages Mak. Spear, Broken Mak. Power Source, Mak. Axe, Mak. Shrapnel Gun. 19403_ G3-INK(m) repairs Mak. Spear. Map ----- +----------------------------------------------------+ | ?????????????#"##"#"##"#" """ | | ??????????????"""""""#""" """ | | ??????????????#"""""""""" """"" | | ??????????????" X"""" "" """"" | | ??????????????# """ """"" | | ?????????????## """ | | ?????????????" " | | ?????????????" "" "" | | ?????????????# """""" """""" """ "" | | ?????>??????#"""""""""""" """"" """" " | | ????????????##""#"######" ""#"" """"" " | | ????????????#"#"###??##"" ""##"" """" | | ????????????#####???##"#" ""##""" | | ???????????##########"""" ""###""" | | ???????????#""""#" "" """"##" | | ???????????##" " "" ""#"" " ##""""" | | ???????????#" #" """#"" " """ """" | | ???????????#"" "" ""###" " "" """" | | ???????????## " #""%* """##"" "#""" | | ???????????#""""#" " """""#""" ""##" | | ???????????######### """""""""""" ""#"" | | ?????????????????#" """#" ""##" | | ?????????????????##" """"" "" "" """### | | ??????????????????##" / z"""" z ;"" """"""#?? | | ??????????????????#"" ; """ = "" """"####?? | | ?????????????###??#"" @ "" !%="" ""###????? | | ?????????#####"####"""""zzzzz z !z ""##?????? | | ????????##"""#"""""#"###z z%z = """""""??? | | #########"""" """"#""##m![z=]z """""""#?? | | """""" ##"" !%" %= "" """#? | | """""" #""" *=*! *! ""#? | | #"#" %= !%=] ""#? | | "" ##"" = "" % "" ""#? | | """ " #"" "" """" ""??? | | """ """"#"##"z """"""" """""????? | | """ ######""" "#"""""" """##????? | | "" ### % ""#???##""""""""""" """#?????? | | #" ""#????#""" "" ""#"?????? | | """""" #"" #????#"" #"##?????? | | """""" ##"" ##???#"" """#?????? | | #########"" ""#???"#" """#?????? | | ???#####"## ##???#"" """ #""#?????? | | ??## ####! # #????#"" """ """ """#?????? | | ??# % ! !%!= #"#????""""" "" """ """#?????? | | ??# !=* #"#???#""""" """ ""##?????? | | ??# #????##"" """" ""##??"??? | | ??## #### #????#""" """"" """##"#"#? | | ???# ! #??######???##"" ""##""" ""#""""## | | #### |######?????##""" """##"" " """"" """ | | """" """"""?????#""" ""###"" "" | +----------------------------------------------------+ Best States ------------- Heat Dissipation 39 Coolant Potential 65 Energy Generation 18 Energy Capacity 290 Matter Stores 300 Matter Capacity 300 Sight Range 16 Terrain Scan Density 10 Additional Mass Support 6 Armor Coverage 600 Resistance: TH 10 Core Shielding 20 Evasion (%) 55 Target Analysis 5 Armor Integrity Analysis 30 Recoil Reduction 3 Offensive Hacking 20 Item Schematics ----------------- Lrg. Storage Unit | -10/Materials | Hacked Hrd. Medium Armor Plating | -8/Materials | Scanalyzed Adv. Heat Sink | -7/Zion | Archive Med. Treads | -7/Zion | Archive Nuclear Pulse Thruster | -7/Zion | Archive Imp. Medium Armor Plating | -7/Zion | Archive Proton Cannon | -7/Zion | Archive Disruptor Cannon | -7/Zion | Archive Plasma Cannon | -7/Zion | Archive Imp. EM Pulse Cannon | -7/Zion | Archive Fission Core | -7/Zion | Archive Hvy. Phase Cannon | -7/Zion | Archive Lyr. Light Armor Plating | -7/Zion | Archive Lyr. Medium Armor Plating | -7/Zion | Archive Lgt. Fission Core | -7/Zion | Archive Chainsword | -7/Zion | Archive Riot Gun | -7/Zion | Free Beamcaster | -7/Zion | Free Barrage Gun | -7/Zion | Free Enh. Flamer | -7/Zion | Free Hvy. Beamcaster | -7/Zion | Free Hvy. Battle Rifle | -7/Zion | Free Robot Schematics ------------------ B-48 Gladiator | -7/Zion | Archive R-06 Scavenger | -7/Zion | Archive H-77 Assassin | -7/Zion | Archive Fabricated ------------ Nothing Alien Tech Used ----------------- None Achievements -------------- None Challenges ------------ None Game ------ Seed GodMultitargetingWings Manual? 0 Play Time 01:39:16 Cumulative 102.7 hours Start 2024.09.17 @ 21:26:55 End 2024.09.17 @ 23:12:54 Sessions 1 Manual Loads 0 Difficulty Rogue Special Mode None Game No. 138 Rogue 138 Adventurer 0 Explorer 0 Win Type - Total 1 Types 1/0/0/0/0/0/0/0/0 Lore% 21 Gallery% 56 Achievement% 44 Wizard Run 0 Options --------- Layout 0 ASCII 0 Keyboard 0 Movement Mouse Keybinds 1 Fullscreen 1 Font 18/TerminusBold Map View 76x50 Zoom Use 0% Tactical HUD 1 Map Filters NONE Filters NONE Steam 1 RUN: a8b1d57a-a5af-4a77-97bd-11f4c35cacf8